Cogmind - Beta 11.1 *** ADVENTURER MODE // 2022.07.19 @ 22:53:50 Player: BakkieSloot Result: Self-destructed Performance ------------- Evolutions (2) 1000 Regions Visited (3) 600 Robots Destroyed (37) 185 Value Destroyed (1038) 1038 Prototype IDs (1) 20 Alien Tech Used (0) 0 Bonus (35) 35 TOTAL SCORE: 2878 Bonus ------- High Alert Combat Kills 35 Cogmind --------- Core Integrity 480/550 Matter 300/300 Energy 460/460 System Corruption 1% Temperature Cool (0) Movement Walking (190) Ox1 Location -8/Materials Parts ------- > --- POWER (2) -------- Heavy Ion Engine Heavy Ion Engine > --- PROPULSION (3) --- Aluminum Leg Aluminum Leg > --- UTILITY (3) ------ Structural Scanner Visual Processing Unit Kinecellerator > --- WEAPON (3) ------- Heavy Assault Rifle Shock Bomb Launcher Chainsword > --- INVENTORY (5) ---- Medium Storage Unit Compact Matter Pod (150) Improved EM Shotgun Peak State ------------ > --- POWER ------------ Heavy Ion Engine Heavy Ion Engine > --- PROPULSION ------- Aluminum Leg Aluminum Leg Aluminum Leg > --- UTILITY ---------- Structural Scanner Visual Processing Unit Hacking Suite > --- WEAPON ----------- Chainsword Chainsword Chainsword > --- INVENTORY -------- Medium Storage Unit Compact Matter Pod Kinecellerator Heavy Assault Rifle [Rating: 28] Favorites ----------- Power Heavy Ion Engine Engine Heavy Ion Engine Propulsion Aluminum Leg Leg Aluminum Leg Utility Structural Scanner Device Structural Scanner Processor Visual Processing Unit Hackware Hacking Suite Protection Propulsion Shielding Weapon Assault Rifle Energy Gun Small Laser Energy Cannon Beam Cannon Ballistic Gun Assault Rifle Launcher Shock Bomb Launcher Slashing Weapon Chainsword Build | -11 -10 -9 -8 ------- Run | Scr Mat Mat Mat Slots Evolved 4 | . . 2 2 Power 1 | . . . 1 Propulsion 1 | . . 1 . Utility 1 | . . 1 . Weapon 1 | . . . 1 Parts Attached 31 | 5 7 8 11 Power 5 | 1 . 1 3 Engine 5 | 1 . 1 3 Core . | . . . . Reactor . | . . . . Propulsion 7 | 2 . 5 . Treads . | . . . . Leg 7 | 2 . 5 . Wheel . | . . . . Hover . | . . . . Flight . | . . . . Utility 9 | . 6 2 1 Device 6 | . 5 . 1 Storage . | . . . . Processor 1 | . . 1 . Hackware 1 | . . 1 . Protection 1 | . 1 . . Artifact . | . . . . Weapon 10 | 2 1 . 7 Energy Gun 1 | 1 . . . Energy Cannon 1 | . 1 . . Ballistic Gun 3 | 1 . . 2 Ballistic Cannon . | . . . . Launcher 2 | . . . 2 Special Weapon . | . . . . Impact Weapon . | . . . . Slashing Weapon 3 | . . . 3 Piercing Weapon . | . . . . Special Melee Weapon . | . . . . Unidentified Prototypes 1 | . . 1 . Parts Lost 2 | . . . 2 Power . | . . . . Propulsion 1 | . . . 1 Utility . | . . . . Weapon 1 | . . . 1 Highest Loss Streak 1 | . . . 1 To Critical Strikes . | . . . . Average Slot Usage (%) 95 | . 96 100 91 Engine 14 | . 14 11 18 Leg 28 | . 28 33 25 Device 17 | . 21 20 11 Processor 5 | . . 11 9 Hackware 2 | . . 1 6 Protection 1 | . 3 . . Energy Gun 2 | . 5 . . Energy Cannon 8 | . 8 11 4 Ballistic Gun 11 | . 14 11 8 Launcher 1 | . . . 5 Naked Turns . | . . . . Heaviest Build 33 | 6 11 16 33 Greatest Support 30 | 20 20 30 30 Greatest Overweight (x) 1 | . . . 1 Average Overweight (x) . | . . . . Largest Inventory Capacity 5 | 5 5 5 5 Average Capacity 5 | 5 5 5 5 Most Carried 5 | 3 5 5 5 Average Carried 3 | 1 3 4 2 Final Capacity 5 | 5 5 5 5 Final Carried 5 | 2 5 4 3 Class Distribution -------------------- 63% | Mutant 20% | Scavenger-Mutant 16% | Hacker-Mutant Dominant Class ---------------- Mutant | -10/Materials Mutant | -9/Materials Scavenger-Mutant | -8/Materials Resources | -11 -10 -9 -8 ----------- Run | Scr Mat Mat Mat Matter Collected 1217 | 259 83 465 410 Remotely . | . . . . Salvage Created 1211 | 42 75 532 562 Parts 79 | 3 10 40 26 Haulers Intercepted 1 | . . . 1 Recyclers Shooed 2 | . . 1 1 Parts Field Recycled . | . . . . Retrieved Matter . | . . . . Parts Self-Destructed . | . . . . Prevented . | . . . . Kills | -11 -10 -9 -8 ------- Run | Scr Mat Mat Mat Combat Hostiles Destroyed 27 | 1 3 12 11 Melee 1 | . . . 1 Guns 11 | 1 2 3 5 Cannons 10 | . 1 8 1 AOE 4 | . . . 4 Classes Destroyed 9 | 1 2 2 4 Worker 1 | . . 1 . Builder 1 | . . . 1 Hauler 1 | . . . 1 Operator 2 | . . . 2 Watcher 5 | . 2 2 1 Swarmer 10 | . 3 3 4 Grunt 12 | 1 . 7 4 Sentry 4 | . . 2 2 Hunter 1 | . . . 1 Best Kill Streak 5 | 1 5 4 5 Combat Bots Only 4 | 1 2 3 4 Max Kills in Single Turn 2 | 1 1 2 2 Gunslinging . | . . . . Exploded 1 | . . . 1 Melee 1 | . . . 1 Uniques/NPCs Destroyed . | . . . . Combat | -11 -10 -9 -8 -------- Run | Scr Mat Mat Mat Damage Taken 868 | 17 70 315 466 Core 137 | . 17 50 70 Absorbed by Shields 152 | . 32 120 . Regen/Repaired (Parts) 6 | . 6 . . Core Remaining (%) 93 | 100 93 87 . Volleys Fired 89 | 3 11 42 33 Largest 2 | 2 2 2 2 Hottest 80 | 60 80 80 80 Shots Fired 160 | 6 22 76 56 Gun 94 | 6 13 42 33 Cannon 57 | . 9 34 14 Launcher 9 | . . . 9 Special . | . . . . Kinetic 89 | 3 11 42 33 Thermal 62 | 3 11 34 14 Explosive . | . . . . Electromagnetic 9 | . . . 9 Robot Hit Streak 16 | 5 6 16 12 Robot Miss Streak 3 | . 3 2 3 Penetration Max . | . . . . Secondary Targets . | . . . . Shots Hit Robots 111 | 5 13 55 38 Core Hits 51 | 2 6 20 23 Critical Kills 2 | . 1 1 . Critical Parts Destroyed . | . . . . Critical Strikes 3 | . 1 1 1 Meltdown 1 | . . 1 . Destroy 1 | . 1 . . Sever 1 | . . . 1 Melee Attacks 3 | . . . 3 Impact . | . . . . Slashing 3 | . . . 3 Piercing . | . . . . Sneak Attacks . | . . . . Combat Hostiles . | . . . . Follow-up Attacks . | . . . . Damage Inflicted 2150 | 57 209 853 1031 Guns 813 | 57 86 418 252 Cannons 714 | . 123 435 156 Explosions 514 | . . . 514 Melee 109 | . . . 109 Ramming . | . . . . Kinetic 769 | 23 76 418 252 Thermal 884 | 34 133 435 282 Explosive . | . . . . Electromagnetic 388 | . . . 388 Impact . | . . . . Slashing 109 | . . . 109 Piercing . | . . . . Highest Corruption 1 | . . . 1 Average Corruption 1 | . . . 1 Corruption Purged . | . . . . Corruption Blocked . | . . . . Overload Shots . | . . . . Overflow Damage 36 | . 1 3 32 Projectiles 12 | . 1 3 8 Explosions 24 | . . . 24 Melee . | . . . . Knockbacks . | . . . . Impact . | . . . . Kinetic . | . . . . Secondary . | . . . . Self-Inflicted Damage 64 | . . . 64 Shots 4 | . . . 4 Rammed . | . . . . Targets Rammed . | . . . . Kicked . | . . . . Crushed . | . . . . Highest Temperature 203 | 6 72 203 123 Average Temperature 50 | 6 31 66 37 Received Heat Transfer 345 | 12 . 144 189 Siege Activations . | . . . . Robots Corrupted . | . . . . Combat Hostiles . | . . . . Parts Fried 4 | . . . 4 Impact Corruptions . | . . . . Robots Melted 1 | . . 1 . Combat Hostiles 1 | . . 1 . Parts Melted 5 | . 1 2 2 Heat Transferred 1717 | 75 284 925 433 Parts Sabotaged . | . . . . Parts Stolen . | . . . . Parts Stripped . | . . . . Power Chain Reactions . | . . . . Missiles Intercepted . | . . . . Alert | -11 -10 -9 -8 ------- Run | Scr Mat Mat Mat Peak Influence 516 | 20 140 334 516 Initial 120 | . 11 . 120 Average 165 | 2 55 203 321 Maximum Alert Level 2 | . . 1 2 Low Security (%) 59 | 100 100 40 9 Level 1 28 | . . 59 46 Level 2 12 | . . . 44 Level 3 . | . . . . Level 4 . | . . . . Level 5 . | . . . . High Security . | . . . . Max Security . | . . . . Squads Dispatched 3 | . 1 1 1 Investigation 2 | . 1 1 . Extermination . | . . . . Reinforcement 1 | . . . 1 Assault . | . . . . Garrison . | . . . . Intercept . | . . . . Searches Triggered . | . . . . Construction Impeded . | . . . . Haulers Reinforced . | . . . . Active Scanning Responses . | . . . . Cargo Convoy Interrupts . | . . . . Stealth | -11 -10 -9 -8 --------- Run | Scr Mat Mat Mat Distress Signals 3 | . 2 . 1 Communications Jammed . | . . . . Distress Signals . | . . . . Times Spotted 36 | 1 7 17 11 Peak Tracking Total 5 | 1 5 4 3 Tactical Retreats . | . . . . Traps | -11 -10 -9 -8 ------- Run | Scr Mat Mat Mat Traps Triggered . | . . . . Indirectly . | . . . . Trap Hack Attempts . | . . . . Triggered . | . . . . Disarmed . | . . . . Reprogrammed . | . . . . Reused . | . . . . Traps Extracted . | . . . . Installed . | . . . . Triggered . | . . . . Machines | -11 -10 -9 -8 ---------- Run | Scr Mat Mat Mat Machines Disabled 8 | . . . 8 Max in Single Turn 6 | . . . 6 Machines Sabotaged . | . . . . Garrisons Compromised . | . . . . Overloaded Fab Kills . | . . . . Hacking | -11 -10 -9 -8 --------- Run | Scr Mat Mat Mat Machines Accessed 7 | . 5 1 1 Terminals 4 | . 3 . 1 Fabricators . | . . . . Repair Stations 1 | . 1 . . Recycling Units 1 | . 1 . . Scanalyzers 1 | . . 1 . Garrison Access . | . . . . Total Hacks 15 | . 9 3 3 Successful 15 | . 9 3 3 Failed . | . . . . Catastrophic . | . . . . Database Lockouts . | . . . . Manual . | . . . . Terminals 7 | . 4 . 3 Fabricators . | . . . . Repair Stations 3 | . 3 . . Recycling Units 2 | . 2 . . Scanalyzers 3 | . . 3 . Garrison Access . | . . . . Terminal Hacks 7 | . 4 . 3 Record 3 | . 2 . 1 Alert Level 2 | . 1 . 1 Locate Traps 1 | . 1 . . Zone Layout 1 | . . . 1 Fabricator Hacks . | . . . . Repair Station Hacks 3 | . 3 . . Scan Component 2 | . 2 . . Repair 1 | . 1 . . Recycling Unit Hacks 2 | . 2 . . Report Inventory 1 | . 1 . . Retrieve Components 1 | . 1 . . Scanalyzer 3 | . . 3 . Insert Component 2 | . . 2 . Analyze 1 | . . 1 . Garrison Access Hacks . | . . . . Unauthorized Hacks . | . . . . Terminals . | . . . . Fabricators . | . . . . Repair Stations . | . . . . Recycling Units . | . . . . Scanalyzers . | . . . . Garrison Access . | . . . . Data Cores Recovered 1 | . . . 1 Used . | . . . . Hacking Detections 3 | . 2 1 . Full Trace Events 1 | . . 1 . Feedback Events . | . . . . Feedback Blocked . | . . . . Robot Schematics Acquired . | . . . . Robots Built . | . . . . Authchips . | . . . . Time . | . . . . Total Robot Build Rating . | . . . . Part Schematics Acquired 1 | . . 1 . Parts Built . | . . . . Authchips . | . . . . Time . | . . . . Total Part Build Rating . | . . . . Parts Repaired 1 | . 1 . . Time 26 | . 26 . . Parts Recycled . | . . . . Recycled Matter . | . . . . Retrieved Matter . | . . . . Retrieved Components 9 | . 9 . . Parts Scanalyzed 1 | . . 1 . Part Schematics Acquired 1 | . . 1 . Parts Damaged . | . . . . Bothacking | -11 -10 -9 -8 ------------ Run | Scr Mat Mat Mat Used RIF Installer . | . . . . Robots Hacked . | . . . . Non-combat . | . . . . Combat . | . . . . Robot Hacks Applied . | . . . . Relay Couplers Released . | . . . . Fabnet Peak Effective % . | . . . . Robots Rewired . | . . . . Allies Hacked . | . . . . Hacks Repelled . | . . . . Allies | -11 -10 -9 -8 -------- Run | Scr Mat Mat Mat Total Allies . | . . . . Largest Group . | . . . . Highest-Rated Group . | . . . . Highest-Rated Ally . | . . . . Total Orders . | . . . . Ally Attacks . | . . . . Total Damage . | . . . . Kills . | . . . . Allies Corrupted . | . . . . Allies Melted . | . . . . Intel | -11 -10 -9 -8 ------- Run | Scr Mat Mat Mat Robot Analysis Total . | . . . . Derelict Logs Recovered . | . . . . Drone Launches . | . . . . Drone Recoveries . | . . . . Exploration | -11 -10 -9 -8 ------------- Run | Scr Mat Mat Mat Turns Passed 1360 | 94 533 349 384 Spaces Moved 836 | 74 395 177 190 Core 22 | 22 . . . Treads . | . . . . Legs 814 | 52 395 177 190 Wheels . | . . . . Hover . | . . . . Flight . | . . . . Fastest Speed 50 | 50 120 120 120 Average Speed 121 | 99 120 120 136 Slowest Speed 190 | 120 120 120 190 Overloaded Moves . | . . . . Propulsion Burnouts . | . . . . Robots Hopped . | . . . . Cave-ins Triggered . | . . . . Exploration Rate (%) 28 | 6 64 20 22 Regions Visited 3 Branch Regions . Pre-discovered Areas . | . . . . Known Exits Taken . | . . . . Unknown Exits Taken 3 | 1 1 1 . Scrap Searched . | . . . . Spaces Dug . | . . . . Terrain Destroyed . | . . . . Melee . | . . . . Projectile . | . . . . AOE . | . . . . Terrain Rammed . | . . . . Walls Destroyed . | . . . . Machines Disabled . | . . . . Actions | -11 -10 -9 -8 --------- Run | Scr Mat Mat Mat Total 1017 | 88 435 239 255 Wait . | . . . . Move 833 | 73 394 176 190 Hop . | . . . . Pick Up 36 | 7 14 5 10 Fast Attach 5 | . 1 3 1 Attach 16 | 5 4 2 5 Detach . | . . . . Swap 10 | . 2 3 5 Drop 25 | . 9 8 8 Fire 89 | 3 11 42 33 Melee 3 | . . . 3 Ram . | . . . . Kick . | . . . . Crush . | . . . . Escape Stasis . | . . . . Rewire . | . . . . Trap . | . . . . Miscellaneous . | . . . . Route ------- -11/Scrapyard -10/Materials (discovered 3 exits: *Mat x2 / [*Min]) -9/Materials -8/Materials History --------- Turn | Location | Event 2 | -11/Scrapyard | Met Revision 17 68 | -11/Scrapyard | Discovered new exit (range 8) 95 | -11/Scrapyard | Entered Materials 213 | -10/Materials | Met 8R-AWN 232 | -10/Materials | Discovered new exit (range 8) 313 | -10/Materials | Build established: Mutant 392 | -10/Materials | Discovered new exit (range 15) 539 | -10/Materials | Discovered new exit (range 15) 592 | -10/Materials | Repaired Structural Scanner? 628 | -10/Materials | Entered another Materials area 628 | -9/Materials | Evolved 2 slots: Propulsion x1, Utility x1 974 | -9/Materials | Discovered new exit (range 3) 977 | -9/Materials | Entered another Materials area 977 | -8/Materials | Evolved 2 slots: Power x1, Weapon x1 1361 | -8/Materials | Self-destructed Last Messages --------------- 01274_ Acquired Prototype Energy Gun. 01280_ Acquired 146 matter. 01290_ Slug penetrates Wall. 01294_ Aluminum Leg destroyed. [Achievement: Let's See Who's Tougher] 01296_ Door malfunctions. 01299_ A-02 Transporter destroyed. [Achievement: Loot Pinata] 01299_ G-47 Trooper destroyed. 01300_ H-55 Commando misfires. 01300_ Slug penetrates Wall. 01302_ Targeting Computer fried. 01302_ H-55 Commando destroyed. 01302_ W-25 Informer distress signal alerts nearby ally. 01326_ Imp. Sensor Array fried. 01326_ W-25 Informer destroyed. 01326_ Material Processor disabled. 01334_ Y-45 Defender Imp. Ion Engine severed. 01339_ Y-45 Defender destroyed. 01344_ Acquired 32 matter. Map ----- +----------------------------------------------------+ | ????????????????????????????????????????????? | | ????????????????????????????????????????????? | | ????????????????????????????????????????????? | | ????????????????????????????????????????????? | | ????????????????????????????????????????????? | | ????????????????????????????????????????????? | | ????????????????????????????????????????????? | | ????????????????????????????????????????????? | | ???????????????????????? ##?????????????????? | | ???????????????????????? ##?????????????????? | | ??????????????????????? ###????????????????? | | ?????????????? ????? ###????????????????? | | ??????????????###+????? ##????????????????? | | ?????????????? ????? ##????????????????? | | ???????????????? ???? ##????????????????? | | ?????????? ##????????????????? | | ??????????#######t### ##????????????????? | | ??????????## ## ##?????????????????? | | ??????????## ! ## ##?????????????????? | | ?????####### ## ##?????????????????? | | ?????####### "T" % ## k##?????????????????? | | ?????##/ ## ## ###### ""??????? | | ?????##// ##+######/## ##########+#####???? | | ?????##!! =%= ???? | | ?????##! [==[ ???? | | ?????##!! =%=%[@ g ???? | | ?????##!! ### [=####+#############+#####???? | | ?????######## # ### # ???? | | ?????######## + % """ ### """""# ???? | | ?????######## #### !*""""" ### """""#" ???? | | ?????######## #### =! """" ### """""#T ???? | | ?????## #### " " ### """""#" ???? | | ?????## ##### #### ### """""# ???? | | ?????## ##### #### = ### """""###???? | | ??##### ##### #### % ### """""###???? | | ??#####+#####/#######/######## # ???? | | ??## [= / # #######+### ???? | | ??###! # / "T" ##?#### ### ???? | | ??###!! # # """ ####### ### ???? | | ???##!! "# =# #### # ???? | | ???## # ##+#+##### # ???? | | ???## # # ???? | | ???## # + ???? | | ???## # # ???? | | ???#######+#### # ???? | | ???##### # ???? | | ??????## # | | ??????## ####### | | ??????## # | | ??????## % | +----------------------------------------------------+ Best States ------------- Heat Dissipation 35 Energy Generation 23 Energy Capacity 460 Matter Stores 300 Matter Capacity 300 Sight Range 18 Robot Scan Range 14 Terrain Scan Density 10 Resistance: KI 20 Resistance: TH 20 Resistance: EX 20 Resistance: EM 20 Resistance: I 20 Resistance: S 20 Resistance: P 20 Propulsion Shielding 33 Evasion (%) 55 Kinecelleration 30 Offensive Hacking 20 Item Schematics ----------------- Hvy. Ion Engine | -9/Materials | Scanalyzed Robot Schematics ------------------ None Fabricated ------------ Nothing Alien Tech Used ----------------- None Achievements -------------- Crack Shot It's Just You Let's See Who's Tougher Loot Pinata One Hack Too Far Part-time Mechanic Risk Taker Uninvited Guest Challenges ------------ None Game ------ Seed GravmagSegregatorStorage Manual? 0 Play Time 00:24:17 Cumulative 0.7 hours Start 2022.07.19 @ 19:31:58 End 2022.07.19 @ 22:53:50 Sessions 3 Manual Loads 0 Difficulty Adventurer Special Mode None Game No. 1 Rogue 0 Adventurer 1 Explorer 0 Win Type - Total 0 Types 0/0/0/0/0/0/0/0/0 Lore% 0 Gallery% 1 Achievement% 3 Wizard Run 0 Options --------- ASCII 0 Keyboard 0 Movement Mouse Keybinds 0 Fullscreen 1 Font 18/SmallcapsGlow Map View 76x50 Tactical HUD 1 Map Filters NONE Filters NONE Steam 1 RUN: ad286f7c-1639-46b9-a307-b9323459a936